bitfinex/quotes_SOLUSD_20260220
["timestamp","ask_amount","ask_price","bid_price","bid_amount"]
[1771599586403,0.2,83.205,83.151,0.45567003]
[1771599586804,12.2186446,83.205,83.151,0.45567003]
[1771599587603,0.28432314,83.204,83.153,0.45567003]
[1771599588688,0.2,83.205,83.153,0.45567003]
[1771599589010,12.01865294,83.204,83.153,0.45567003]
[1771599589213,0.2,83.21,83.155,0.45567003]
[1771599589390,0.2,83.21,83.157,0.45567003]
[1771599589704,0.2,83.21,83.159,0.45567003]
[1771599591916,0.2,83.208,83.161,0.45567003]
[1771599594092,0.2,83.208,83.163,0.45567003]
[1771599594613,0.28432314,83.207,83.148,12.02674748]
[1771599594794,0.2,83.194,83.056,0.45567003]
[1771599594991,33.99065962,83.127,83.056,0.45567003]
[1771599595196,0.28432314,83.126,83.056,0.45567003]
[1771599595392,0.28432314,83.126,83.055,42.14075009]
[1771599595393,0.28432314,83.126,83.071,0.45567003]
[1771599595596,0.2,83.197,83.071,0.45567003]
[1771599595893,0.28432314,83.166,83.071,0.45567003]
[1771599596092,0.2,83.143,83.073,0.45567003]
[1771599596412,0.28432314,83.134,83.073,0.45567003]
[1771599596591,0.2,83.121,83.073,0.45567003]
[1771599596792,0.28432314,83.118,83.073,0.45567003]
[1771599597012,0.2,83.117,83.073,0.45567003]
[1771599597210,0.28432314,83.152,83.077,0.45567003]
[1771599597405,0.28432314,83.15,83.077,0.45567003]
[1771599597601,0.28432314,83.15,83.079,0.45567003]
[1771599597804,0.28432314,83.15,83.087,0.45567003]
[1771599598203,0.2,83.148,83.089,0.45567003]
[1771599599713,48.08788368,83.182,83.088,42.12401309]
[1771599599714,0.2,83.179,83.095,0.45567003]
[1771599599896,0.2,83.177,83.105,0.45567003]
[1771599600303,0.2,83.177,83.116,0.45567003]
[1771599600304,12.2226506,83.177,83.116,0.45567003]
[1771599600502,12.0226506,83.177,83.116,0.45567003]
[1771599600708,0.2,83.208,83.126,0.45567003]
[1771599600915,0.2,83.208,83.136,0.45567003]
[1771599601113,0.2,83.208,83.138,0.45567003]
[1771599601418,0.3,83.22,83.146,0.45567003]
[1771599601614,0.2,83.208,83.15,0.45567003]
[1771599601795,0.2,83.2,83.15,0.45567003]
[1771599601997,0.2,83.186,83.11,3.69383402]
[1771599602199,0.2,83.168,83.117,12.03123308]
[1771599602511,0.48432314,83.157,83.117,0.45567003]
[1771599602706,0.28432314,83.167,83.117,0.45567003]
[1771599603411,0.28432314,83.17,83.117,0.45567003]
[1771599603996,0.2,83.206,83.124,0.28432314]
[1771599604211,12.01698557,83.216,83.148,0.45567003]
[1771599604413,0.2,83.227,83.156,0.45567003]
[1771599604918,0.2,83.205,83.156,0.45567003]
[1771599605542,0.2,83.205,83.144,42.09564129]
[1771599605543,0.2,83.205,83.145,0.45567003]
[1771599605700,0.28432314,83.198,83.145,0.45567003]
[1771599605902,0.2,83.19,83.145,0.45567003]
[1771599606813,17.71207797,83.216,83.146,12.02703677]
[1771599606814,0.2,83.185,83.146,12.02703677]
[1771599607018,0.2,83.18,83.136,12.02838273]
[1771599607220,0.2,83.18,83.137,0.47754357]
[1771599607431,0.28432314,83.188,83.137,0.47754357]
[1771599607753,0.2,83.186,83.137,0.47754357]
[1771599608047,0.2,83.185,83.137,0.47754357]
[1771599609414,0.28432314,83.188,83.139,0.47754357]
[1771599609947,0.2,83.185,83.137,12.02830755]
[1771599610243,0.2,83.175,83.137,12.02830755]
[1771599610576,0.2,83.165,83.109,0.47754357]
[1771599610915,0.2,83.155,83.109,0.47754357]
[1771599611118,17.71207797,83.187,83.109,0.47754357]
[1771599611424,12.02024208,83.193,83.13,0.47754357]
[1771599611642,12.01865294,83.204,83.136,0.47754357]
[1771599611937,0.28432314,83.203,83.136,0.47754357]
[1771599612134,0.2,83.2,83.136,0.47754357]
[1771599613233,12.30369837,83.199,83.141,0.47754357]
[1771599614020,0.28432314,83.197,83.141,0.47754357]
[1771599614824,0.2,83.195,83.143,0.47754357]
[1771599615450,12.01980864,83.196,83.143,0.47754357]
[1771599616442,0.1,83.22,83.151,0.47754357]
[1771599616443,0.2,83.216,83.151,0.47754357]
[1771599616664,0.2,83.216,83.145,3.69383402]
[1771599616665,1e-08,83.21,83.159,0.47754357]
[1771599616815,0.1,83.22,83.171,0.28432314]
[1771599617015,0.1,83.22,83.194,0.47754357]
[1771599617220,12.0111717,83.256,83.197,0.47754357]
[1771599617420,0.3,83.255,83.197,0.47754357]
[1771599617648,12.0111717,83.256,83.174,0.28432314]
[1771599617649,0.3,83.253,83.174,0.28432314]
[1771599617952,0.3,83.247,83.185,0.47754357]
[1771599618642,12.0111717,83.256,83.187,0.47754357]
[1771599618950,0.3,83.258,83.197,0.47754357]
[1771599618951,12.01143488,83.254,83.197,0.47754357]
[1771599619242,12.31143488,83.254,83.197,0.47754357]
[1771599619451,0.3,83.253,83.197,0.47754357]
[1771599620153,12.01143488,83.254,83.197,0.47754357]
[1771599620154,0.28432314,83.249,83.197,0.47754357]
[1771599620535,0.3,83.245,83.197,0.47754357]
[1771599620739,0.28432314,83.236,83.197,0.47754357]
[1771599620942,12.3078291,83.279,83.205,0.47754357]
[1771599621248,0.14216157,83.268,83.205,0.47754357]
[1771599621424,12.00703634,83.285,83.213,0.47754357]
[1771599621625,0.3,83.293,83.23,0.28432314]
[1771599621843,0.1,83.3,83.24,0.28432314]
[1771599622036,0.1,83.3,83.245,0.47754357]
[1771599623146,12.10489112,83.3,83.247,0.47754357]
[1771599623328,0.1,83.3,83.255,0.47754357]
[1771599624060,47.97318573,83.38,83.275,0.47754357]
[1771599624061,11.99987905,83.335,83.275,0.47754357]
[1771599624244,0.4,83.335,83.285,0.47754357]
[1771599624557,12.00037654,83.331,83.285,0.47754357]
[1771599624736,0.4,83.335,83.285,0.47754357]
[1771599624940,0.4,83.335,83.287,0.47754357]
[1771599624941,12.00070755,83.329,83.287,0.47754357]
[1771599625127,12.00134415,83.324,83.287,0.47754357]
[1771599625327,0.4,83.323,83.286,12.00681987]
[1771599625541,0.4,83.323,83.277,12.48566105]
[1771599625736,0.4,83.315,83.26,0.47754357]
[1771599625934,0.28432314,83.323,83.26,0.47754357]
[1771599626134,42.00470452,83.324,83.26,0.47754357]
[1771599626135,0.28432314,83.319,83.26,0.47754357]
[1771599626950,18.02106607,83.325,83.265,0.28432314]
[1771599627155,0.4,83.37,83.273,0.28432314]
[1771599627360,0.4,83.367,83.288,0.47754357]
[1771599627560,0.4,83.367,83.296,0.47754357]
[1771599627855,0.4,83.367,83.306,0.47754357]
[1771599628238,0.4,83.367,83.294,0.47754357]
[1771599628437,0.4,83.361,83.284,0.47754357]
[1771599628639,0.4,83.337,83.274,0.47754357]
[1771599628856,0.4,83.325,83.262,0.47754357]
[1771599629153,0.4,83.315,83.266,0.47754357]
[1771599629733,42.00470452,83.324,83.266,0.47754357]
[1771599630529,0.4,83.334,83.276,0.47754357]
[1771599630751,47.97088022,83.384,83.286,0.47754357]
[1771599630752,0.4,83.345,83.286,0.47754357]
[1771599631260,0.4,83.343,83.288,0.47754357]
[1771599631750,0.4,83.343,83.266,0.47754357]
[1771599632850,0.4,83.323,83.266,0.47754357]
[1771599633154,0.4,83.323,83.217,0.47754357]
[1771599633155,0.4,83.299,83.217,0.47754357]
[1771599633338,0.68432314,83.294,83.22,0.47754357]
[1771599633538,0.28432314,83.291,83.225,0.47754357]
[1771599634151,0.28432314,83.29,83.225,0.47754357]
[1771599634757,0.4,83.285,83.225,0.47754357]
[1771599634962,0.28432314,83.286,83.225,0.47754357]
[1771599635155,0.28432314,83.286,83.219,3.69383402]
[1771599635156,12.00696403,83.285,83.23,0.14216157]
[1771599635454,12.00696403,83.285,83.235,0.47754357]
[1771599635658,3.56608973,83.27,83.235,0.47754357]
[1771599636155,0.4,83.31,83.239,0.47754357]
[1771599636355,3.56608973,83.3,83.255,0.47754357]
[1771599636554,3.56608973,83.29,83.255,0.47754357]
[1771599636762,3.56608973,83.28,83.255,0.47754357]
[1771599637145,15.57388395,83.28,83.255,12.48878586]
[1771599637344,3.56608973,83.28,83.256,0.46211192]
[1771599637740,3.56608973,83.27,83.216,0.46211192]
[1771599638051,3.56608973,83.26,83.216,0.46211192]
[1771599640157,3.56608973,83.26,83.218,0.46211192]
[1771599640466,3.56608973,83.28,83.226,0.46211192]
[1771599641061,3.56608973,83.27,83.226,0.46211192]
[1771599641266,3.56608973,83.28,83.238,0.46211192]
[1771599641557,3.56608973,83.28,83.207,48.0727134]
[1771599641558,3.56608973,83.26,83.228,0.46211192]
[1771599642361,3.56608973,83.27,83.228,0.46211192]
[1771599642759,12.0078291,83.279,83.228,0.46211192]
[1771599642959,3.56608973,83.28,83.232,0.46211192]
[1771599643169,3.56608973,83.28,83.236,0.46211192]
[1771599643352,3.56608973,83.27,83.238,0.46211192]
[1771599644364,3.56608973,83.26,83.233,12.01444259]
[1771599644670,3.56608973,83.25,83.233,12.01444259]
[1771599644871,3.56608973,83.26,83.233,12.01444259]
[1771599645067,3.56608973,83.27,83.234,0.46211192]
[1771599645254,3.56608973,83.28,83.236,0.46211192]
[1771599645450,15.57388962,83.28,83.238,0.46211192]
[1771599645653,3.56608973,83.27,83.238,0.46211192]
[1771599645968,3.56608973,83.28,83.238,0.46211192]
[1771599646360,3.56608973,83.27,83.238,0.46211192]
[1771599647361,3.56608973,83.28,83.24,0.46211192]
[1771599648577,3.56608973,83.26,83.238,12.01370747]
[1771599648757,3.56608973,83.26,83.238,42.04806677]
[1771599649073,3.56608973,83.26,83.238,12.01370747]
[1771599649366,3.56608973,83.27,83.239,0.46211192]
[1771599649574,0.4,83.294,83.239,0.46211192]
[1771599649874,3.56608973,83.3,83.245,0.46211192]
[1771599650080,12.00336094,83.31,83.256,0.28432314]
[1771599650081,3.56608973,83.31,83.256,0.28432314]
[1771599650286,48.07314149,83.38,83.253,0.46211192]
[1771599650287,11.9981223,83.347,83.253,0.46211192]
[1771599650456,3.56608973,83.35,83.273,0.46211192]
[1771599650650,3.56608973,83.36,83.295,0.46211192]
[1771599650961,3.56608973,83.37,83.315,0.46211192]
[1771599651162,1e-08,83.372,83.324,0.28432314]
[1771599651478,1e-08,83.372,83.345,0.46211192]
[1771599651959,3.56608973,83.37,83.334,41.999664]
[1771599652161,3.56608973,83.36,83.301,0.28432314]
[1771599652570,0.49042338,83.359,83.301,0.28432314]
[1771599652774,0.49042338,83.339,83.246,0.28432314]
[1771599653078,3.56608973,83.34,83.246,0.28432314]
[1771599653263,3.56608973,83.34,83.256,0.28432314]
[1771599653463,3.56608973,83.34,83.258,0.28432314]
[1771599653965,0.49042338,83.359,83.258,0.28432314]
[1771599654166,0.49042338,83.359,83.278,0.28432314]
[1771599654479,3.56608973,83.35,83.304,0.14216157]
[1771599654776,3.56608973,83.35,83.305,0.46211192]
[1771599654978,3.69383402,83.357,83.315,0.46211192]
[1771599655274,3.56608973,83.35,83.315,0.46211192]
[1771599655475,0.49042338,83.359,83.317,0.46211192]
[1771599655476,3.69383402,83.356,83.317,0.46211192]
[1771599655988,3.56608973,83.35,83.317,0.46211192]
[1771599656194,3.56608973,83.35,83.316,12.00249651]
[1771599656195,0.49042338,83.349,83.316,12.00249651]
[1771599656684,3.56608973,83.34,83.316,12.00249651]
[1771599656863,3.69383402,83.359,83.317,0.46211192]
[1771599657070,3.56608973,83.37,83.325,0.46211192]
[1771599657271,7.25992375,83.37,83.325,0.46211192]
[1771599657661,0.49042338,83.395,83.333,0.46211192]
[1771599657861,0.49042338,83.406,83.345,0.46211192]
[1771599658174,3.56608973,83.4,83.356,0.46211192]
[1771599659070,3.56608973,83.4,83.366,0.46211192]
[1771599659366,3.56608973,83.39,83.327,0.46211192]
[1771599659566,0.49042338,83.389,83.335,0.46211192]
[1771599659767,3.56608973,83.38,83.335,0.46211192]
[1771599659984,0.49042338,83.379,83.335,0.46211192]
[1771599660289,0.49042338,83.369,83.335,0.46211192]
[1771599660482,3.55652046,83.37,83.335,0.46211192]
[1771599660483,3.55652046,83.38,83.335,0.46211192]
[1771599660679,3.69383402,83.39,83.342,0.28432314]
[1771599660885,3.69383402,83.39,83.345,0.46211192]
[1771599661083,3.55652046,83.38,83.345,0.46211192]
[1771599661272,0.49042338,83.379,83.345,0.46211192]
[1771599661479,3.69383402,83.387,83.345,0.46211192]
[1771599661786,3.55652046,83.38,83.347,0.46211192]
[1771599661964,3.55652046,83.38,83.346,41.99361696]
[1771599661965,0.49042338,83.379,83.346,41.99361696]
[1771599662161,3.69383402,83.386,83.347,0.46211192]
[1771599662668,3.55652046,83.38,83.347,0.46211192]
[1771599662873,3.69383402,83.386,83.347,0.46211192]
[1771599663067,3.55652046,83.4,83.35,0.28432314]
[1771599663288,0.49042338,83.414,83.36,0.28432314]
[1771599663480,0.49042338,83.414,83.365,0.46211192]
[1771599663685,3.55652046,83.41,83.367,0.46211192]
[1771599663884,0.49042338,83.399,83.366,41.98354244]
[1771599664076,41.95988634,83.413,83.354,0.46211192]
[1771599664077,0.49042338,83.389,83.355,11.99688081]
[1771599664274,0.49042338,83.389,83.311,48.0124054]
[1771599664275,0.49042338,83.389,83.343,30.45830527]
[1771599664477,0.49042338,83.369,83.344,11.99846419]
[1771599665189,3.55652046,83.38,83.345,0.46211192]
[1771599665381,0.49042338,83.379,83.344,41.99462468]
[1771599665686,0.49042338,83.379,83.344,29.99616049]
[1771599665992,3.69383402,83.382,83.345,0.49959594]
[1771599666171,3.55652046,83.38,83.345,0.49959594]
[1771599666366,3.69383402,83.383,83.345,0.49959594]
[1771599666892,3.69383402,83.396,83.35,0.14216157]
[1771599667191,3.69383402,83.396,83.355,0.49959594]
[1771599667501,3.69383402,83.406,83.359,0.48794531]
[1771599667671,3.69383402,83.406,83.361,0.48794531]
[1771599667867,3.55652046,83.41,83.361,0.48794531]
[1771599668474,3.55652046,83.4,83.361,0.48794531]
[1771599668800,0.4926168,83.389,83.36,11.99616122]
[1771599669389,0.4926168,83.389,83.35,0.48794531]
[1771599669390,3.55652046,83.37,83.338,0.48794531]
[1771599669577,0.4926168,83.369,83.339,11.99918405]
[1771599669896,0.4926168,83.369,83.299,48.01952163]
[1771599669897,3.55652046,83.35,83.328,12.00076804]
[1771599670193,3.69383402,83.366,83.308,0.5]
[1771599670194,3.55652046,83.34,83.308,0.5]
[1771599670394,3.55652046,83.33,83.308,0.5]
[1771599670615,3.69383402,83.37,83.308,0.5]
[1771599670773,3.55652046,83.38,83.308,0.5]
[1771599670978,11.9837979,83.446,83.323,0.28432314]
[1771599671174,47.90423844,83.5,83.333,0.28432314]
[1771599671400,11.97174667,83.53,83.343,0.28432314]
[1771599671581,0.71852749,83.531,83.345,0.28432314]
[1771599671784,29.91184994,83.579,83.5,6.25379865]
[1771599671985,11.96202976,83.598,83.5,6.25379865]
[1771599672190,20.54641121,83.61,83.5,6.25379865]
[1771599672398,8.58598661,83.61,83.501,0.28432314]
[1771599672588,47.80770817,83.669,83.501,0.28432314]
[1771599672589,11.95532552,83.645,83.501,12.87168245]
[1771599672789,48.04397038,83.705,83.501,12.87168245]
[1771599672790,0.74397265,83.668,83.501,12.87168245]
[1771599672995,0.74397265,83.659,83.503,0.28432314]
[1771599673191,0.74397265,83.679,83.505,0.28432314]
[1771599673480,3.69383402,83.694,83.507,0.28432314]
[1771599673685,3.69383402,83.694,83.509,581.06004786]
[1771599673880,0.25696,83.705,83.509,581.06004786]
[1771599673881,1e-08,83.705,83.511,0.28432314]
[1771599674086,1e-08,83.705,83.584,0.28432314]
[1771599674300,1e-08,83.725,83.662,0.25602733]
[1771599674598,1e-08,83.725,83.585,99.28401067]
[1771599674599,15.16323414,83.74,83.61,0.28432314]
[1771599674796,15.16323414,83.74,83.62,0.28432314]
[1771599675000,1e-08,83.74,83.64,0.28432314]
[1771599675203,1e-08,83.77,83.661,0.25602733]
[1771599675416,1e-08,83.77,83.641,14.99349997]
[1771599675417,250.46514953,83.844,83.667,0.25602733]
[1771599675577,29.81961408,83.838,83.667,0.25602733]
[1771599675893,0.61594375,83.847,83.672,0.28432314]
[1771599675894,59.63527067,83.843,83.672,0.28432314]
[1771599676120,11.92705413,83.843,83.685,0.25602733]
[1771599676273,0.4926168,83.799,83.695,0.25602733]
[1771599676476,11.92705413,83.843,83.707,0.48794531]
[1771599676702,11.92705413,83.843,83.702,0.28432314]
[1771599676703,0.61594375,83.847,83.725,0.48794531]
[1771599676877,42.35870661,83.847,83.725,0.48794531]
[1771599677077,42.35870661,83.847,83.719,0.28432314]
[1771599677298,42.35870661,83.847,83.689,16.62425473]
[1771599677299,12.54249375,83.847,83.706,0.48794531]
[1771599677601,11.92662738,83.846,83.723,0.48794531]
[1771599677777,5.50107568,83.8,83.727,0.48794531]
[1771599677980,41.74319585,83.846,83.745,0.48794531]
[1771599678188,41.74319585,83.846,83.726,232.9025631]
[1771599678189,11.92662738,83.846,83.732,0.28432314]
[1771599678385,11.92662738,83.846,83.745,0.48794531]
[1771599678386,0.4926168,83.846,83.745,0.48794531]
[1771599678612,0.61594375,83.847,83.743,0.28432314]
[1771599678809,5.50107568,83.84,83.754,0.48794531]
[1771599679012,0.25696,83.872,83.768,0.48794531]
[1771599679179,0.25696,83.872,83.784,0.48794531]
[1771599679381,1e-08,83.872,83.791,0.48794531]
[1771599679631,11.91213608,83.948,83.803,0.48794531]
[1771599679795,11.91213608,83.948,83.817,0.48794531]
[1771599680001,1e-08,83.949,83.827,0.48794531]
[1771599680206,1e-08,83.949,83.835,0.48794531]
[1771599680413,1e-08,83.949,83.851,0.48794531]
[1771599680605,0.4926168,83.948,83.865,0.48794531]
[1771599680898,1e-08,83.949,83.876,0.28432314]
[1771599681109,1e-08,83.949,83.695,105.78153189]
[1771599681110,11.89952044,84.037,83.893,0.48794531]
[1771599681411,0.25696,84.038,83.915,0.48794531]
[1771599681582,190.1705592,84.135,83.93,0.28432314]
[1771599681781,53.86,84.273,83.947,0.28432314]
[1771599681782,47.53580744,84.148,83.947,0.28432314]
[1771599682005,5.50107568,84.1,83.954,0.48794531]
[1771599682208,29.71174024,84.142,83.958,0.48794531]
[1771599682387,5.50107568,84.1,83.964,0.48794531]
[1771599682587,29.71174024,84.142,83.97,0.48794531]
[1771599682787,29.71174024,84.142,83.983,0.28432314]
[1771599682788,5.50107568,84.08,83.983,0.28432314]
[1771599683105,0.26612227,84.141,84.021,0.28432314]
[1771599683308,0.26612227,84.149,84.037,0.14216157]
[1771599683477,0.26612227,84.149,84.049,0.28432314]
[1771599683684,0.26612227,84.113,83.999,0.48794531]
[1771599683905,0.26612227,84.157,84.016,0.28432314]
[1771599684085,47.49797715,84.215,84.039,0.48794531]
[1771599684400,5.50107568,84.18,84.061,0.48794531]
[1771599684602,5.50107568,84.2,84.073,0.5]
[1771599684778,154.38696497,84.204,84.04,29.21161404]
[1771599684779,106.88328344,84.204,84.081,0.5]
[1771599684977,47.4851557,84.237,84.097,0.5]
[1771599685203,5.50107568,84.17,84.117,0.5]
[1771599685389,47.46368108,84.275,84.125,0.5]
[1771599685591,1e-08,84.205,84.147,0.5]
[1771599685791,1e-08,84.205,84.041,140.0]
[1771599685792,1e-08,84.205,84.169,0.5]
[1771599685995,1e-08,84.205,84.166,291.09141455]
[1771599685996,47.46025291,84.282,84.187,0.5]
[1771599686288,0.4926168,84.229,84.166,11.88128222]
[1771599686501,5.50107568,84.21,84.148,11.88382373]
[1771599686702,0.4926168,84.229,84.103,231.85855436]
[1771599686902,0.4926168,84.229,84.103,291.30946574]
[1771599687086,0.4926168,84.239,84.103,303.89682505]
[1771599687404,0.4926168,84.222,84.103,303.89682505]
[1771599687591,0.4926168,84.207,84.103,89.17636706]
[1771599687790,0.4926168,84.209,84.103,291.30946574]
[1771599688004,0.4926168,84.279,84.103,505.33274669]
[1771599688311,0.4926168,84.249,84.122,0.48794531]
[1771599688509,0.4926168,84.249,84.137,0.28432314]
[1771599688684,5.50107568,84.26,84.156,0.48794531]
[1771599688893,47.46421491,84.275,84.103,505.33274669]
[1771599688894,5.50107568,84.23,84.162,0.48794531]
[1771599689197,47.48055329,84.246,84.103,291.30946574]
[1771599689198,0.4926168,84.252,84.174,0.48794531]
[1771599689405,0.4926168,84.269,84.182,0.48794531]
[1771599689595,5.50107568,84.25,84.188,0.48794531]
[1771599689796,5.50107568,84.29,84.202,0.48794531]
[1771599690110,5.50107568,84.25,84.212,0.48794531]
[1771599690291,0.4926168,84.24,84.142,0.48794531]
[1771599690487,5.50107568,84.19,84.142,0.48794531]
[1771599690799,0.4926168,84.162,84.09,136.7582352]
[1771599690984,5.50107568,84.3,84.091,0.48794531]
[1771599691181,0.28432314,84.3,84.097,0.48794531]
[1771599691382,5.50107568,84.17,84.097,0.48794531]
[1771599691690,0.14216157,84.299,84.092,0.48794531]
[1771599691890,0.14216157,84.299,84.091,127.51138388]
[1771599691891,95.02203322,84.191,84.094,0.48794531]
[1771599692093,11.87775415,84.191,84.094,0.48794531]
[1771599692297,5.50107568,84.19,84.094,0.48794531]
[1771599692494,5.50107568,84.2,84.094,0.48794531]
[1771599692719,5.50107568,84.2,84.093,374.58528054]
[1771599692720,5.50107568,84.17,84.101,0.14216157]
[1771599693003,5.50107568,84.17,84.116,0.48794531]
[1771599693204,5.50107568,84.14,84.1,0.48794531]
[1771599693396,0.4926168,84.138,84.091,127.01605537]
[1771599693599,5.50107568,84.2,84.053,0.5]
[1771599693600,5.50107568,84.1,84.053,0.5]
[1771599693929,5.50107568,84.07,84.015,0.5]
[1771599694219,11.8907478,84.099,84.015,0.5]
[1771599694430,5.50107568,84.05,84.015,0.5]
[1771599694608,5.50107568,84.06,84.015,0.5]
[1771599694792,5.50107568,84.07,84.015,0.5]
[1771599695113,5.50107568,84.09,84.019,0.5]
[1771599695321,5.50107568,84.05,84.011,126.32769118]
[1771599695627,5.50107568,84.11,84.013,0.5]
[1771599695786,5.50107568,84.11,84.012,291.62500589]
[1771599695787,5.50107568,84.12,84.051,0.5]
[1771599695994,5.50107568,84.1,84.053,0.5]
[1771599696293,5.50107568,84.06,84.012,118.87931422]
[1771599696500,5.50107568,84.06,84.013,11.90291978]
[1771599696795,0.4926168,84.079,84.013,89.27189838]
[1771599697005,5.50107568,84.05,84.012,118.87931422]
[1771599697325,5.50107568,84.07,84.013,11.90291978]
[1771599697631,0.48493623,84.176,84.013,184.49525666]
[1771599697821,47.51891846,84.177,84.014,0.14216157]
[1771599697822,0.48493623,84.116,84.014,0.14216157]
[1771599698112,0.48493623,84.108,84.014,0.14216157]
[1771599698297,5.50107568,84.1,84.016,0.14216157]
[1771599698507,0.48493623,84.126,84.023,0.46845884]
[1771599698711,5.50107568,84.14,84.026,0.28432314]
[1771599699027,5.50107568,84.17,84.061,0.46845884]
[1771599699194,5.50107568,84.17,84.027,12.58735931]
[1771599699195,0.48493623,84.171,84.077,0.46845884]
[1771599699399,5.50107568,84.16,84.091,0.46845884]
[1771599699916,249.38248146,84.208,84.027,12.58735931]
[1771599699917,5.50107568,84.13,84.038,0.28432314]
[1771599700098,5.50107568,84.11,84.051,0.46845884]
[1771599700303,5.50107568,84.12,84.063,0.46845884]
[1771599700612,5.50107568,84.11,84.063,0.46845884]
[1771599700912,0.48493623,84.13,84.063,0.46845884]
[1771599701117,11.88413346,84.146,84.065,0.46845884]
[1771599701299,5.50107568,84.16,84.073,0.46845884]
[1771599701500,0.48493623,84.176,84.095,0.46845884]
[1771599701823,5.50107568,84.2,84.119,0.46845884]
[1771599702138,0.48493623,84.206,84.137,0.46845884]
[1771599702303,0.48493623,84.206,84.126,279.34289041]
[1771599702304,0.48493623,84.264,84.157,0.46845884]
[1771599702624,0.48493623,84.249,84.173,0.46845884]
[1771599702912,5.50107568,84.26,84.201,0.49246811]
[1771599703117,5.50107568,84.23,84.186,0.49246811]
[1771599703300,5.50107568,84.3,84.187,0.28432314]
[1771599703494,5.50107568,84.25,84.192,0.49246811]
[1771599703694,5.50107568,84.28,84.205,0.28432314]
[1771599703895,5.50107568,84.3,84.227,0.49246811]
[1771599704129,47.40891408,84.373,84.243,0.49246811]
[1771599704327,5.50107568,84.31,84.251,0.49246811]
[1771599704542,41.4873819,84.363,84.255,0.49246811]
[1771599704712,11.85297568,84.367,84.264,0.28432314]
[1771599705022,5.50107568,84.34,84.281,0.49246811]
[1771599705228,47.39074507,84.405,84.222,516.49212791]
[1771599705229,5.50107568,84.32,84.225,0.28432314]
[1771599705418,242.98600159,84.367,84.242,0.49246811]
[1771599705730,290.39790434,84.367,84.241,0.49246811]
[1771599705933,41.4854149,84.367,84.252,41.82636368]
[1771599706106,41.4854149,84.367,84.26,0.28432314]
[1771599706423,9.03783472,84.31,84.261,0.49246811]
[1771599706625,9.03783472,84.32,84.262,0.49246811]
[1771599706808,9.03783472,84.32,84.252,231.44851158]
[1771599706809,9.03783472,84.3,84.252,11.86915444]
[1771599707008,290.39790434,84.367,84.215,0.49246811]
[1771599707009,361.51575847,84.367,84.215,0.49246811]
[1771599707219,290.39790434,84.367,84.215,0.49246811]
[1771599707423,9.03783472,84.25,84.199,0.49246811]
[1771599707627,9.03783472,84.27,84.199,0.49246811]
[1771599707819,0.28432314,84.366,84.199,0.49246811]
[1771599708010,0.28432314,84.366,84.201,0.49246811]
[1771599708328,9.03783472,84.24,84.2,11.87648456]
[1771599708513,0.28432314,84.299,84.154,0.49246811]
[1771599708710,9.03783472,84.3,84.128,0.49246811]
[1771599708915,9.03783472,84.19,84.128,0.49246811]
[1771599709641,9.03783472,84.3,84.12,0.46845884]
[1771599709945,9.03783472,84.23,84.12,0.46845884]
[1771599710109,9.03783472,84.22,84.122,0.46845884]
[1771599710444,0.28432314,84.27,84.122,0.46845884]
[1771599710910,0.28432314,84.27,84.121,386.34823645]
[1771599710911,11.86647838,84.271,84.124,0.46845884]
[1771599711228,0.14216157,84.27,84.124,0.46845884]
[1771599711408,9.03783472,84.21,84.141,0.14216157]
[1771599711610,9.03783472,84.21,84.121,303.13477013]
[1771599711611,18.12568929,84.23,84.155,0.14216157]
[1771599711814,18.12568929,84.21,84.162,0.46845884]
[1771599712108,18.12568929,84.23,84.172,0.14216157]
[1771599712309,11.86698468,84.268,84.182,0.14216157]
[1771599712511,0.48493623,84.359,84.204,0.46845884]
[1771599712717,18.12568929,84.3,84.217,0.28432314]
[1771599712914,0.48493623,84.311,84.235,0.28432314]
[1771599713211,0.48493623,84.346,84.261,0.28432314]
[1771599713533,18.12568929,84.29,84.2,0.46845884]
[1771599713827,0.48493623,84.358,84.224,0.46845884]
[1771599714128,11.85297568,84.367,84.253,0.28432314]
[1771599714331,47.38985069,84.407,84.245,290.81844617]
[1771599714332,1e-08,84.372,84.266,0.28432314]
[1771599714530,1e-08,84.372,84.287,0.28432314]
[1771599714729,1e-08,84.372,84.302,0.46845884]
[1771599714932,1e-08,84.372,84.254,16.62425473]
[1771599714933,18.12568929,84.43,84.31,0.46845884]
[1771599715132,0.48493623,84.499,84.33,0.46845884]
[1771599715338,153.79155327,84.53,84.342,0.46845884]
[1771599715339,0.48493623,84.497,84.342,0.46845884]
[1771599715671,0.48493623,84.497,84.331,12.58735931]
[1771599715672,47.28091792,84.601,84.365,0.46845884]
[1771599715823,5.36086188,84.561,84.383,0.46845884]
[1771599716028,5.36086188,84.561,84.367,72.1]
[1771599716029,0.48493623,84.599,84.393,38.94625591]
[1771599716212,5.36086188,84.593,84.402,0.28432314]